[Event "Titled Tuesday Blitz March 08 Late 2022"]
[White "Warakomska, Anna"]
[Black "Ardila, Oscar Humberto"]
[WhiteFideId "1130790"]
[BlackFideId "4404742"]
[WhiteElo "2062"]
[BlackElo "1966"]
[Result "0-1"]
[Round "06"]
[TimeControl "180+1"]
[Date "2022.03.09"]
[WhiteClock "0:00:07"]
[BlackClock "0:00:39"]

1. e4 {[%clk 0:02:51]}  e5 {[%clk 0:02:59]} 2. Nf3 {[%clk 0:02:48]}  Nc6 {[%clk 0:02:59]} 3. Bb5 {[%clk 0:02:48]}  a6 {[%clk 0:02:57]} 4. Ba4 {[%clk 0:02:47]}  Nf6 {[%clk 0:02:57]} 5. O-O {[%clk 0:02:44]}  b5 {[%clk 0:02:57]} 6. Bb3 {[%clk 0:02:44]}  Be7 {[%clk 0:02:57]} 7. Re1 {[%clk 0:02:28]}  d6 {[%clk 0:02:57]} 8. c3 {[%clk 0:02:22]}  Bg4 {[%clk 0:02:56]} 9. h3 {[%clk 0:02:19]}  Bh5 {[%clk 0:02:56]} 10. d3 {[%clk 0:02:18]}  O-O {[%clk 0:02:55]} 11. Nbd2 {[%clk 0:02:16]}  Na5 {[%clk 0:02:55]} 12. Bc2 {[%clk 0:02:16]}  c5 {[%clk 0:02:55]} 13. Nf1 {[%clk 0:02:17]}  Qc7 {[%clk 0:02:55]} 14. Ng3 {[%clk 0:02:17]}  Bg6 {[%clk 0:02:55]} 15. Nh4 {[%clk 0:02:10]}  c4 {[%clk 0:02:54]} 16. Nhf5 {[%clk 0:02:06]}  cxd3 {[%clk 0:02:49]} 17. Qxd3 {[%clk 0:02:02]}  Nc4 {[%clk 0:02:46]} 18. b3 {[%clk 0:01:57]}  Nb6 {[%clk 0:02:44]} 19. Ba3 {[%clk 0:01:49]}  Rfd8 {[%clk 0:02:42]} 20. Rad1 {[%clk 0:01:45]}  Bf8 {[%clk 0:02:34]} 21. Qf3 {[%clk 0:01:04]}  Rac8 {[%clk 0:02:18]} 22. Re3 {[%clk 0:00:47]}  d5 {[%clk 0:01:56]} 23. Bxf8 {[%clk 0:00:44]}  Rxf8 {[%clk 0:01:56]} 24. exd5 {[%clk 0:00:34]}  e4 {[%clk 0:01:51]} 25. Nxe4 {[%clk 0:00:28]}  Nbxd5 {[%clk 0:01:23]} 26. Red3 {[%clk 0:00:28]}  Nxe4 {[%clk 0:01:19]} 27. Qxe4 {[%clk 0:00:23]}  Nxc3 {[%clk 0:01:13]} 28. Ne7+ {[%clk 0:00:23]}  Kh8 {[%clk 0:01:11]} 29. Nxg6+ {[%clk 0:00:23]}  fxg6 {[%clk 0:01:09]} 30. Qh4 {[%clk 0:00:16]}  Nxd1 {[%clk 0:01:06]} 31. Bxd1 {[%clk 0:00:15]}  Rcd8 {[%clk 0:00:55]} 32. Rxd8 {[%clk 0:00:15]}  Rxd8 {[%clk 0:00:55]} 33. Bf3 {[%clk 0:00:15]}  Re8 {[%clk 0:00:50]} 34. g3 {[%clk 0:00:15]}  Qf7 {[%clk 0:00:46]} 35. Kg2 {[%clk 0:00:14]}  Rf8 {[%clk 0:00:46]} 36. Qe4 {[%clk 0:00:14]}  Qf5 {[%clk 0:00:43]} 37. Qxf5 {[%clk 0:00:13]}  Rxf5 {[%clk 0:00:43]} 38. Bb7 {[%clk 0:00:14]}  Rf6 {[%clk 0:00:42]} 39. f4 {[%clk 0:00:14]}  Kg8 {[%clk 0:00:42]} 40. Kf3 {[%clk 0:00:14]}  Kf8 {[%clk 0:00:43]} 41. h4 {[%clk 0:00:14]}  Ke7 {[%clk 0:00:43]} 42. Ke4 {[%clk 0:00:14]}  Rb6 {[%clk 0:00:43]} 43. Bd5 {[%clk 0:00:14]}  Kd6 {[%clk 0:00:42]} 44. Bg8 {[%clk 0:00:14]}  h6 {[%clk 0:00:41]} 45. Bf7 {[%clk 0:00:15]}  Kc5 {[%clk 0:00:41]} 46. g4 {[%clk 0:00:13]}  Kb4 {[%clk 0:00:41]} 47. h5 {[%clk 0:00:09]}  gxh5 {[%clk 0:00:41]} 48. Bxh5 {[%clk 0:00:07]}  Ka3 {[%clk 0:00:40]} 49. Bf7 {[%clk 0:00:07]}  Kxa2 {[%clk 0:00:39]} 0-1


[Site "https://www.chess.com"]

[Event "Titled Tuesday Blitz March 08 Late 2022"]
[White "Winkels, Marcel"]
[Black "Elissalt Cardenas, Hector"]
[WhiteFideId "1003887"]
[BlackFideId "3500632"]
[WhiteElo "1900"]
[BlackElo "2159"]
[Result "0-1"]
[Round "06"]
[TimeControl "180+1"]
[Date "2022.03.09"]
[WhiteClock "0:00:03"]
[BlackClock "0:00:11"]

1. e4 {[%clk 0:02:53]}  d6 {[%clk 0:02:54]} 2. d4 {[%clk 0:02:52]}  Nf6 {[%clk 0:02:53]} 3. Nc3 {[%clk 0:02:52]}  e5 {[%clk 0:02:53]} 4. f4 {[%clk 0:02:51]}  exd4 {[%clk 0:02:51]} 5. Qxd4 {[%clk 0:02:50]}  c5 {[%clk 0:02:47]} 6. Qd1 {[%clk 0:02:44]}  Nc6 {[%clk 0:02:39]} 7. Nf3 {[%clk 0:02:43]}  Be7 {[%clk 0:02:22]} 8. Bc4 {[%clk 0:02:41]}  O-O {[%clk 0:02:15]} 9. Qe2 {[%clk 0:02:29]}  Nd4 {[%clk 0:01:54]} 10. Nxd4 {[%clk 0:02:27]}  cxd4 {[%clk 0:01:52]} 11. Nd5 {[%clk 0:02:28]}  Nxd5 {[%clk 0:01:50]} 12. Bxd5 {[%clk 0:02:27]}  Qb6 {[%clk 0:01:46]} 13. Qf2 {[%clk 0:02:15]}  Be6 {[%clk 0:01:40]} 14. O-O {[%clk 0:02:08]}  Bxd5 {[%clk 0:01:37]} 15. exd5 {[%clk 0:02:06]}  Bf6 {[%clk 0:01:37]} 16. Rb1 {[%clk 0:02:00]}  Rfe8 {[%clk 0:01:23]} 17. Bd2 {[%clk 0:01:55]}  Qa6 {[%clk 0:01:16]} 18. Rfe1 {[%clk 0:01:42]}  Qxa2 {[%clk 0:01:14]} 19. Bb4 {[%clk 0:01:32]}  Qxd5 {[%clk 0:01:12]} 20. Kh1 {[%clk 0:01:25]}  a5 {[%clk 0:01:05]} 21. Bd2 {[%clk 0:01:20]}  a4 {[%clk 0:01:01]} 22. Qf1 {[%clk 0:01:12]}  b5 {[%clk 0:01:00]} 23. Qd3 {[%clk 0:01:10]}  Qc4 {[%clk 0:00:57]} 24. h3 {[%clk 0:01:00]}  h5 {[%clk 0:00:55]} 25. Re4 {[%clk 0:00:53]}  Qxd3 {[%clk 0:00:51]} 26. cxd3 {[%clk 0:00:52]}  d5 {[%clk 0:00:51]} 27. Ree1 {[%clk 0:00:50]}  g6 {[%clk 0:00:43]} 28. Bb4 {[%clk 0:00:48]}  Kg7 {[%clk 0:00:41]} 29. Kg1 {[%clk 0:00:46]}  Bh4 {[%clk 0:00:39]} 30. Rxe8 {[%clk 0:00:44]}  Rxe8 {[%clk 0:00:38]} 31. Kf1 {[%clk 0:00:43]}  Bg3 {[%clk 0:00:36]} 32. Rc1 {[%clk 0:00:39]}  Bxf4 {[%clk 0:00:34]} 33. Rc5 {[%clk 0:00:39]}  Bd6 {[%clk 0:00:23]} 34. Rxb5 {[%clk 0:00:37]}  Bxb4 {[%clk 0:00:22]} 35. Rxb4 {[%clk 0:00:36]}  Re3 {[%clk 0:00:20]} 36. Rxd4 {[%clk 0:00:35]}  h4 {[%clk 0:00:16]} 37. Rxd5 {[%clk 0:00:34]}  Re6 {[%clk 0:00:16]} 38. d4 {[%clk 0:00:32]}  Rb6 {[%clk 0:00:15]} 39. Ra5 {[%clk 0:00:31]}  Rxb2 {[%clk 0:00:15]} 40. Rxa4 {[%clk 0:00:31]}  Kf6 {[%clk 0:00:14]} 41. Ra5 {[%clk 0:00:28]}  Rd2 {[%clk 0:00:14]} 42. d5 {[%clk 0:00:28]}  Ke5 {[%clk 0:00:14]} 43. Ra7 {[%clk 0:00:27]}  Kf6 {[%clk 0:00:14]} 44. Ra5 {[%clk 0:00:26]}  Ke5 {[%clk 0:00:14]} 45. Ra7 {[%clk 0:00:25]}  f5 {[%clk 0:00:14]} 46. Rg7 {[%clk 0:00:24]}  Kf6 {[%clk 0:00:13]} 47. Rd7 {[%clk 0:00:23]}  g5 {[%clk 0:00:13]} 48. Ke1 {[%clk 0:00:22]}  Rd4 {[%clk 0:00:13]} 49. d6 {[%clk 0:00:22]}  Ke6 {[%clk 0:00:12]} 50. Rg7 {[%clk 0:00:21]}  g4 {[%clk 0:00:12]} 51. hxg4 {[%clk 0:00:20]}  fxg4 {[%clk 0:00:13]} 52. Rh7 {[%clk 0:00:21]}  Kxd6 {[%clk 0:00:12]} 53. Rxh4 {[%clk 0:00:21]}  Ke5 {[%clk 0:00:12]} 54. Rh5+ {[%clk 0:00:20]}  Kf4 {[%clk 0:00:12]} 55. Kf2 {[%clk 0:00:20]}  Rd2+ {[%clk 0:00:12]} 56. Kf1 {[%clk 0:00:19]}  Ra2 {[%clk 0:00:12]} 57. Rh8 {[%clk 0:00:18]}  Kg3 {[%clk 0:00:13]} 58. Rg8 {[%clk 0:00:16]}  Rf2+ {[%clk 0:00:12]} 59. Ke1 {[%clk 0:00:16]}  Rxg2 {[%clk 0:00:13]} 60. Kf1 {[%clk 0:00:15]}  Ra2 {[%clk 0:00:13]} 61. Rg7 {[%clk 0:00:12]}  Ra1+ {[%clk 0:00:13]} 62. Ke2 {[%clk 0:00:12]}  Kh3 {[%clk 0:00:13]} 63. Rh7+ {[%clk 0:00:10]}  Kg2 {[%clk 0:00:12]} 64. Rg7 {[%clk 0:00:10]}  g3 {[%clk 0:00:13]} 65. Rf7 {[%clk 0:00:09]}  Ra8 {[%clk 0:00:12]} 66. Rh7 {[%clk 0:00:08]}  Re8+ {[%clk 0:00:12]} 67. Kd2 {[%clk 0:00:08]}  Kg1 {[%clk 0:00:12]} 68. Rf7 {[%clk 0:00:05]}  g2 {[%clk 0:00:13]} 69. Rg7 {[%clk 0:00:05]}  Rh8 {[%clk 0:00:12]} 70. Re7 {[%clk 0:00:03]}  Kh1 {[%clk 0:00:12]} 71. Rh7+ {[%clk 0:00:03]}  Rxh7 {[%clk 0:00:11]} 0-1


[Site "https://www.chess.com"]

[Event "Titled Tuesday Blitz March 08 Late 2022"]
[White "Xiong, Jeffery"]
[Black "Adewumi, Tanitoluwa"]
[WhiteFideId "2047640"]
[BlackFideId "30966396"]
[WhiteElo "2727"]
[BlackElo "2564"]
[Result "1-0"]
[Round "06"]
[TimeControl "180+1"]
[Date "2022.03.08"]
[WhiteClock "0:00:18"]
[BlackClock "0:00:06"]

1. Nf3 {[%clk 0:03:00]}  Nf6 {[%clk 0:02:59]} 2. c4 {[%clk 0:02:57]}  e6 {[%clk 0:02:57]} 3. b3 {[%clk 0:02:57]}  b6 {[%clk 0:02:48]} 4. g3 {[%clk 0:02:56]}  Bb7 {[%clk 0:02:49]} 5. Bg2 {[%clk 0:02:56]}  Be7 {[%clk 0:02:50]} 6. Bb2 {[%clk 0:02:56]}  O-O {[%clk 0:02:51]} 7. O-O {[%clk 0:02:57]}  a5 {[%clk 0:02:49]} 8. Nc3 {[%clk 0:02:56]}  d6 {[%clk 0:02:49]} 9. d4 {[%clk 0:02:55]}  Ne4 {[%clk 0:02:48]} 10. Na4 {[%clk 0:02:36]}  Qc8 {[%clk 0:02:35]} 11. d5 {[%clk 0:02:28]}  Bf6 {[%clk 0:02:22]} 12. Bxf6 {[%clk 0:02:07]}  Nxf6 {[%clk 0:02:23]} 13. Nc3 {[%clk 0:02:07]}  Re8 {[%clk 0:02:15]} 14. e4 {[%clk 0:02:03]}  Nbd7 {[%clk 0:02:10]} 15. Nd4 {[%clk 0:02:00]}  Nc5 {[%clk 0:02:07]} 16. Qc2 {[%clk 0:01:57]}  e5 {[%clk 0:02:02]} 17. Nf5 {[%clk 0:01:49]}  g6 {[%clk 0:01:53]} 18. Ne3 {[%clk 0:01:49]}  Ng4 {[%clk 0:01:49]} 19. Qe2 {[%clk 0:01:22]}  Nxe3 {[%clk 0:01:41]} 20. Qxe3 {[%clk 0:01:23]}  Qd8 {[%clk 0:01:22]} 21. f4 {[%clk 0:01:21]}  exf4 {[%clk 0:01:22]} 22. gxf4 {[%clk 0:01:18]}  f5 {[%clk 0:01:04]} 23. e5 {[%clk 0:01:16]}  dxe5 {[%clk 0:01:02]} 24. fxe5 {[%clk 0:01:17]}  Qh4 {[%clk 0:00:49]} 25. Rae1 {[%clk 0:01:15]}  Re7 {[%clk 0:00:46]} 26. Nb5 {[%clk 0:00:46]}  Rae8 {[%clk 0:00:39]} 27. e6 {[%clk 0:00:46]}  Qg4 {[%clk 0:00:18]} 28. Qg3 {[%clk 0:00:38]}  Qxg3 {[%clk 0:00:15]} 29. hxg3 {[%clk 0:00:39]}  Ba6 {[%clk 0:00:10]} 30. Nd4 {[%clk 0:00:39]}  Bb7 {[%clk 0:00:09]} 31. Re3 {[%clk 0:00:36]}  Kg7 {[%clk 0:00:10]} 32. a3 {[%clk 0:00:35]}  h5 {[%clk 0:00:10]} 33. b4 {[%clk 0:00:30]}  axb4 {[%clk 0:00:11]} 34. axb4 {[%clk 0:00:31]}  Na6 {[%clk 0:00:12]} 35. Rb1 {[%clk 0:00:29]}  Kf6 {[%clk 0:00:12]} 36. Kf2 {[%clk 0:00:29]}  Nb8 {[%clk 0:00:10]} 37. Ra3 {[%clk 0:00:19]}  Rc8 {[%clk 0:00:07]} 38. Ra7 {[%clk 0:00:19]}  c6 {[%clk 0:00:06]} 39. d6 {[%clk 0:00:18]} 1-0


[Site "https://www.chess.com"]

[Event "Titled Tuesday Blitz March 08 Late 2022"]
[White "Xu, Yi"]
[Black "Hnydiuk, Aleksander"]
[WhiteFideId "8605564"]
[BlackFideId "1109057"]
[WhiteElo "2471"]
[BlackElo "2374"]
[Result "1-0"]
[Round "06"]
[TimeControl "180+1"]
[Date "2022.03.08"]
[WhiteClock "0:00:55"]
[BlackClock "0:00:17"]

1. e4 {[%clk 0:03:00]}  Nf6 {[%clk 0:02:59]} 2. e5 {[%clk 0:03:00]}  Nd5 {[%clk 0:02:59]} 3. d4 {[%clk 0:02:59]}  d6 {[%clk 0:03:00]} 4. c4 {[%clk 0:02:58]}  Nb6 {[%clk 0:03:00]} 5. f4 {[%clk 0:02:57]}  dxe5 {[%clk 0:02:59]} 6. fxe5 {[%clk 0:02:57]}  Nc6 {[%clk 0:03:00]} 7. Nf3 {[%clk 0:02:56]}  Bg4 {[%clk 0:02:54]} 8. Be3 {[%clk 0:02:56]}  e6 {[%clk 0:02:52]} 9. Be2 {[%clk 0:02:54]}  Bxf3 {[%clk 0:02:39]} 10. gxf3 {[%clk 0:02:53]}  Qh4+ {[%clk 0:02:39]} 11. Bf2 {[%clk 0:02:53]}  Qf4 {[%clk 0:02:37]} 12. c5 {[%clk 0:02:38]}  Nd5 {[%clk 0:02:34]} 13. Bb5 {[%clk 0:02:33]}  Be7 {[%clk 0:02:28]} 14. Nc3 {[%clk 0:02:31]}  O-O {[%clk 0:02:21]} 15. Nxd5 {[%clk 0:02:28]}  exd5 {[%clk 0:02:22]} 16. O-O {[%clk 0:02:23]}  f6 {[%clk 0:02:13]} 17. Bxc6 {[%clk 0:02:20]}  bxc6 {[%clk 0:02:13]} 18. e6 {[%clk 0:02:14]}  Rab8 {[%clk 0:02:12]} 19. b3 {[%clk 0:02:13]}  f5 {[%clk 0:02:05]} 20. Bg3 {[%clk 0:02:12]}  Qe3+ {[%clk 0:02:03]} 21. Bf2 {[%clk 0:02:11]}  Qf4 {[%clk 0:02:03]} 22. Bg3 {[%clk 0:02:07]}  Qe3+ {[%clk 0:02:03]} 23. Kh1 {[%clk 0:02:04]}  Bf6 {[%clk 0:01:51]} 24. Bxc7 {[%clk 0:02:01]}  Rbc8 {[%clk 0:01:49]} 25. Bd6 {[%clk 0:01:59]}  Rfe8 {[%clk 0:01:49]} 26. Re1 {[%clk 0:01:57]}  Qxd4 {[%clk 0:01:45]} 27. Qxd4 {[%clk 0:01:57]}  Bxd4 {[%clk 0:01:46]} 28. Rad1 {[%clk 0:01:57]}  Bf6 {[%clk 0:01:39]} 29. b4 {[%clk 0:01:50]}  a5 {[%clk 0:01:31]} 30. b5 {[%clk 0:01:49]}  cxb5 {[%clk 0:01:29]} 31. Rxd5 {[%clk 0:01:50]}  g6 {[%clk 0:01:14]} 32. Kg2 {[%clk 0:01:47]}  Rc6 {[%clk 0:01:12]} 33. f4 {[%clk 0:01:44]}  b4 {[%clk 0:01:09]} 34. Rd3 {[%clk 0:01:42]}  a4 {[%clk 0:01:06]} 35. Kf3 {[%clk 0:01:39]}  b3 {[%clk 0:01:01]} 36. axb3 {[%clk 0:01:35]}  a3 {[%clk 0:01:01]} 37. b4 {[%clk 0:01:30]}  a2 {[%clk 0:00:57]} 38. Ra3 {[%clk 0:01:30]}  a1=Q {[%clk 0:00:51]} 39. Raxa1 {[%clk 0:01:28]}  Bxa1 {[%clk 0:00:52]} 40. b5 {[%clk 0:01:15]}  Bc3 {[%clk 0:00:34]} 41. Re3 {[%clk 0:01:14]}  Rcc8 {[%clk 0:00:33]} 42. Rxc3 {[%clk 0:01:09]}  Rxe6 {[%clk 0:00:34]} 43. Rb3 {[%clk 0:01:06]}  Kf7 {[%clk 0:00:19]} 44. b6 {[%clk 0:01:02]}  Rxd6 {[%clk 0:00:19]} 45. cxd6 {[%clk 0:01:02]}  Ke6 {[%clk 0:00:19]} 46. b7 {[%clk 0:01:02]}  Rb8 {[%clk 0:00:19]} 47. Rb6 {[%clk 0:01:02]}  Kd7 {[%clk 0:00:19]} 48. Ke3 {[%clk 0:00:55]}  h6 {[%clk 0:00:17]} 49. h4 {[%clk 0:00:55]}  Ke6 {[%clk 0:00:17]} 50. Kd4 {[%clk 0:00:55]} 1-0


[Site "https://www.chess.com"]

[Event "Titled Tuesday Blitz March 08 Late 2022"]
[White "Yuan, Qingyu"]
[Black "Zhurbinsky, David"]
[WhiteFideId "8609772"]
[BlackFideId "2072904"]
[WhiteElo "2359"]
[BlackElo "2551"]
[Result "1-0"]
[Round "06"]
[TimeControl "180+1"]
[Date "2022.03.08"]
[WhiteClock "0:01:43"]
[BlackClock "0:00:52"]

1. e4 {[%clk 0:03:00]}  e5 {[%clk 0:03:00]} 2. Nf3 {[%clk 0:03:00]}  Nc6 {[%clk 0:03:01]} 3. Bb5 {[%clk 0:03:00]}  a6 {[%clk 0:03:01]} 4. Ba4 {[%clk 0:03:01]}  Nf6 {[%clk 0:03:02]} 5. O-O {[%clk 0:03:01]}  Be7 {[%clk 0:03:03]} 6. Re1 {[%clk 0:03:01]}  b5 {[%clk 0:03:03]} 7. Bb3 {[%clk 0:03:01]}  O-O {[%clk 0:03:04]} 8. a4 {[%clk 0:03:02]}  Bb7 {[%clk 0:03:04]} 9. d3 {[%clk 0:03:00]}  d6 {[%clk 0:03:02]} 10. Nbd2 {[%clk 0:02:52]}  h6 {[%clk 0:02:59]} 11. Nf1 {[%clk 0:02:52]}  Re8 {[%clk 0:03:00]} 12. Ng3 {[%clk 0:02:51]}  Bf8 {[%clk 0:02:52]} 13. Nf5 {[%clk 0:02:50]}  Bc8 {[%clk 0:02:49]} 14. c3 {[%clk 0:02:47]}  Bxf5 {[%clk 0:02:41]} 15. exf5 {[%clk 0:02:48]}  d5 {[%clk 0:02:36]} 16. h3 {[%clk 0:02:39]}  Qd7 {[%clk 0:02:21]} 17. Nh4 {[%clk 0:02:36]}  e4 {[%clk 0:02:15]} 18. dxe4 {[%clk 0:02:32]}  Nxe4 {[%clk 0:01:37]} 19. axb5 {[%clk 0:02:15]}  axb5 {[%clk 0:01:21]} 20. Rxa8 {[%clk 0:02:14]}  Rxa8 {[%clk 0:01:22]} 21. Rxe4 {[%clk 0:01:51]}  Ra1 {[%clk 0:01:02]} 22. Re1 {[%clk 0:01:50]}  Be7 {[%clk 0:00:58]} 23. Nf3 {[%clk 0:01:46]}  Qxf5 {[%clk 0:00:52]} 24. Qxd5 {[%clk 0:01:43]} 1-0


[Site "https://www.chess.com"]

[Event "Titled Tuesday Blitz March 08 Late 2022"]
[White "Adewumi, Tanitoluwa"]
[Black "Kamsky, Gata"]
[WhiteFideId "30966396"]
[BlackFideId "2000024"]
[WhiteElo "2563"]
[BlackElo "2645"]
[Result "0-1"]
[Round "07"]
[TimeControl "180+1"]
[Date "2022.03.08"]
[WhiteClock "0:00:01"]
[BlackClock "0:01:03"]

1. Nf3 {[%clk 0:02:56]}  Nf6 {[%clk 0:02:59]} 2. b3 {[%clk 0:02:47]}  d5 {[%clk 0:02:58]} 3. Bb2 {[%clk 0:02:47]}  c5 {[%clk 0:02:58]} 4. e3 {[%clk 0:02:48]}  a6 {[%clk 0:02:57]} 5. d4 {[%clk 0:02:46]}  Nc6 {[%clk 0:02:56]} 6. dxc5 {[%clk 0:02:46]}  e6 {[%clk 0:02:55]} 7. c4 {[%clk 0:02:45]}  dxc4 {[%clk 0:02:49]} 8. Qxd8+ {[%clk 0:02:44]}  Kxd8 {[%clk 0:02:47]} 9. Bxc4 {[%clk 0:02:41]}  Bxc5 {[%clk 0:02:47]} 10. O-O {[%clk 0:02:41]}  b5 {[%clk 0:02:47]} 11. Be2 {[%clk 0:02:36]}  Bb7 {[%clk 0:02:47]} 12. Nc3 {[%clk 0:02:34]}  Ke7 {[%clk 0:02:45]} 13. Rad1 {[%clk 0:02:35]}  Rhd8 {[%clk 0:02:44]} 14. a4 {[%clk 0:02:32]}  b4 {[%clk 0:02:42]} 15. Nb1 {[%clk 0:02:31]}  Na5 {[%clk 0:02:39]} 16. Nbd2 {[%clk 0:02:26]}  Bd5 {[%clk 0:02:38]} 17. Rc1 {[%clk 0:02:14]}  Rdc8 {[%clk 0:02:34]} 18. Nd4 {[%clk 0:02:01]}  Ne4 {[%clk 0:02:24]} 19. Nxe4 {[%clk 0:01:56]}  Bxe4 {[%clk 0:02:24]} 20. Bd1 {[%clk 0:01:01]}  e5 {[%clk 0:02:16]} 21. Re1 {[%clk 0:00:30]}  f6 {[%clk 0:02:09]} 22. Kh1 {[%clk 0:00:24]}  Kf7 {[%clk 0:02:07]} 23. Nf3 {[%clk 0:00:23]}  Be7 {[%clk 0:01:52]} 24. Nd2 {[%clk 0:00:20]}  Rxc1 {[%clk 0:01:50]} 25. Bxc1 {[%clk 0:00:21]}  Bd5 {[%clk 0:01:48]} 26. e4 {[%clk 0:00:12]}  Be6 {[%clk 0:01:47]} 27. f4 {[%clk 0:00:12]}  exf4 {[%clk 0:01:44]} 28. e5 {[%clk 0:00:13]}  f5 {[%clk 0:01:38]} 29. Nf3 {[%clk 0:00:09]}  Nxb3 {[%clk 0:01:29]} 30. Bxb3 {[%clk 0:00:08]}  Bxb3 {[%clk 0:01:29]} 31. Nd4 {[%clk 0:00:05]}  Bxa4 {[%clk 0:01:28]} 32. Nxf5 {[%clk 0:00:03]}  Bd7 {[%clk 0:01:24]} 33. Nd4 {[%clk 0:00:02]}  Kg8 {[%clk 0:01:17]} 34. e6 {[%clk 0:00:02]}  Be8 {[%clk 0:01:15]} 35. Bxf4 {[%clk 0:00:02]}  a5 {[%clk 0:01:10]} 36. Nf5 {[%clk 0:00:01]}  Bf6 {[%clk 0:01:10]} 37. Be5 {[%clk 0:00:01]}  Bg6 {[%clk 0:01:06]} 38. Bxf6 {[%clk 0:00:01]}  gxf6 {[%clk 0:01:06]} 39. Ne7+ {[%clk 0:00:01]}  Kf8 {[%clk 0:01:04]} 40. Nc6 {[%clk 0:00:01]}  b3 {[%clk 0:01:03]} 0-1


[Site "https://www.chess.com"]

[Event "Titled Tuesday Blitz March 08 Late 2022"]
[White "Antonio, Jorge Carlos"]
[Black "Andersson, Bjorn 1971"]
[WhiteFideId "113190"]
[BlackFideId "1702114"]
[WhiteElo "2247"]
[BlackElo "2207"]
[Result "0-1"]
[Round "07"]
[TimeControl "180+1"]
[Date "2022.03.09"]
[WhiteClock "0:00:52"]
[BlackClock "0:00:45"]

1. d4 {[%clk 0:02:56]}  c5 {[%clk 0:02:59]} 2. e3 {[%clk 0:02:55]}  b6 {[%clk 0:02:59]} 3. Nf3 {[%clk 0:02:55]}  Bb7 {[%clk 0:02:59]} 4. c3 {[%clk 0:02:55]}  Nf6 {[%clk 0:02:57]} 5. Bd3 {[%clk 0:02:55]}  g6 {[%clk 0:02:57]} 6. Nbd2 {[%clk 0:02:55]}  Bg7 {[%clk 0:02:57]} 7. O-O {[%clk 0:02:55]}  O-O {[%clk 0:02:57]} 8. b3 {[%clk 0:02:55]}  d5 {[%clk 0:02:57]} 9. Bb2 {[%clk 0:02:54]}  Nbd7 {[%clk 0:02:57]} 10. Qe2 {[%clk 0:02:51]}  Re8 {[%clk 0:02:56]} 11. Ne5 {[%clk 0:02:48]}  Nxe5 {[%clk 0:02:55]} 12. dxe5 {[%clk 0:02:48]}  Nd7 {[%clk 0:02:55]} 13. f4 {[%clk 0:02:48]}  e6 {[%clk 0:02:55]} 14. Nf3 {[%clk 0:02:44]}  a6 {[%clk 0:02:53]} 15. Bc2 {[%clk 0:02:44]}  b5 {[%clk 0:02:51]} 16. Rad1 {[%clk 0:02:43]}  Qb6 {[%clk 0:02:50]} 17. Kh1 {[%clk 0:02:43]}  c4 {[%clk 0:02:49]} 18. b4 {[%clk 0:02:42]}  a5 {[%clk 0:02:49]} 19. a3 {[%clk 0:02:41]}  axb4 {[%clk 0:02:49]} 20. axb4 {[%clk 0:02:37]}  Ra2 {[%clk 0:02:46]} 21. Bb1 {[%clk 0:02:37]}  Ra6 {[%clk 0:02:42]} 22. Nd4 {[%clk 0:02:37]}  Nb8 {[%clk 0:02:34]} 23. Rg1 {[%clk 0:02:37]}  Nc6 {[%clk 0:02:32]} 24. g4 {[%clk 0:02:35]}  Nxe5 {[%clk 0:02:23]} 25. fxe5 {[%clk 0:02:35]}  Bxe5 {[%clk 0:02:23]} 26. Rdf1 {[%clk 0:02:33]}  Bg7 {[%clk 0:02:20]} 27. Qf3 {[%clk 0:02:32]}  Rf8 {[%clk 0:02:17]} 28. g5 {[%clk 0:02:29]}  e5 {[%clk 0:02:14]} 29. Ne2 {[%clk 0:02:03]}  Ra7 {[%clk 0:02:01]} 30. Rg2 {[%clk 0:02:00]}  d4 {[%clk 0:02:00]} 31. Be4 {[%clk 0:01:57]}  d3 {[%clk 0:01:54]} 32. Ng3 {[%clk 0:01:54]}  f5 {[%clk 0:01:45]} 33. Bxb7 {[%clk 0:01:52]}  Rxb7 {[%clk 0:01:36]} 34. Qd5+ {[%clk 0:01:51]}  Kh8 {[%clk 0:01:32]} 35. h4 {[%clk 0:01:49]}  Rd8 {[%clk 0:01:31]} 36. Qc5 {[%clk 0:01:48]}  Qe6 {[%clk 0:01:27]} 37. e4 {[%clk 0:01:37]}  f4 {[%clk 0:01:21]} 38. Rgf2 {[%clk 0:01:16]}  Qh3+ {[%clk 0:01:15]} 39. Rh2 {[%clk 0:01:13]}  Qxg3 {[%clk 0:01:09]} 40. h5 {[%clk 0:01:11]}  gxh5 {[%clk 0:00:58]} 41. Rxh5 {[%clk 0:01:08]}  d2 {[%clk 0:00:56]} 42. Rg1 {[%clk 0:00:56]}  d1=Q {[%clk 0:00:47]} 43. g6 {[%clk 0:00:52]}  Qdf3+ {[%clk 0:00:45]} 0-1


[Site "https://www.chess.com"]

[Event "Titled Tuesday Blitz March 08 Late 2022"]
[White "Avazkhonov, Alikhon"]
[Black "Gerbelli Neto, Eduardo"]
[WhiteFideId "14208504"]
[BlackFideId "2103281"]
[WhiteElo "1739"]
[BlackElo "2178"]
[Result "1-0"]
[Round "07"]
[TimeControl "180+1"]
[Date "2022.03.09"]
[WhiteClock "0:00:16"]
[BlackClock "0:00:04"]

1. f4 {[%clk 0:03:00]}  e5 {[%clk 0:02:59]} 2. fxe5 {[%clk 0:03:01]}  d6 {[%clk 0:02:59]} 3. exd6 {[%clk 0:03:02]}  Bxd6 {[%clk 0:03:00]} 4. Nf3 {[%clk 0:03:03]}  g5 {[%clk 0:02:59]} 5. g3 {[%clk 0:03:04]}  g4 {[%clk 0:02:59]} 6. Nh4 {[%clk 0:03:04]}  Ne7 {[%clk 0:03:00]} 7. Nc3 {[%clk 0:03:04]}  Ng6 {[%clk 0:03:01]} 8. Nxg6 {[%clk 0:03:04]}  hxg6 {[%clk 0:03:02]} 9. Ne4 {[%clk 0:03:04]}  Be5 {[%clk 0:02:34]} 10. Bg2 {[%clk 0:03:02]}  f5 {[%clk 0:02:32]} 11. Nf2 {[%clk 0:03:00]}  Nc6 {[%clk 0:02:25]} 12. c3 {[%clk 0:02:59]}  Be6 {[%clk 0:01:52]} 13. d4 {[%clk 0:02:57]}  Bf6 {[%clk 0:01:53]} 14. d5 {[%clk 0:02:31]}  Ne5 {[%clk 0:01:26]} 15. dxe6 {[%clk 0:02:27]}  Qe7 {[%clk 0:01:26]} 16. Bxb7 {[%clk 0:02:20]}  Rd8 {[%clk 0:01:26]} 17. Qa4+ {[%clk 0:02:20]}  Kf8 {[%clk 0:01:26]} 18. O-O {[%clk 0:02:03]}  Qxe6 {[%clk 0:01:23]} 19. Bf4 {[%clk 0:01:48]}  g5 {[%clk 0:01:20]} 20. Bxe5 {[%clk 0:01:40]}  Qxe5 {[%clk 0:01:09]} 21. e4 {[%clk 0:01:22]}  f4 {[%clk 0:00:31]} 22. Nxg4 {[%clk 0:01:00]}  Qc5+ {[%clk 0:00:26]} 23. Kg2 {[%clk 0:00:55]}  Rd2+ {[%clk 0:00:22]} 24. Kh1 {[%clk 0:00:40]}  Kg7 {[%clk 0:00:04]} 25. e5 {[%clk 0:00:23]}  Rdxh2+ {[%clk 0:00:04]} 26. Nxh2 {[%clk 0:00:21]}  fxg3 {[%clk 0:00:04]} 27. exf6+ {[%clk 0:00:20]}  Kf8 {[%clk 0:00:04]} 28. Qd4 {[%clk 0:00:16]}  Rxh2+ {[%clk 0:00:04]} 29. Kg1 {[%clk 0:00:16]} 1-0


[Site "https://www.chess.com"]